fUST/lending_fUST_20260209
["ID","MTS","AMOUNT","RATE_DAILY","PERIOD"]
[404884601,1770648641152,-159.067308,0.0004,120]
[404884602,1770648641161,-151.0,0.0004,120]
[404884603,1770648641171,-215.824217,0.0004,120]
[404884604,1770648641180,-151.0,0.0004,120]
[404884605,1770648641189,-151.0,0.0004,120]
[404884606,1770648641199,-172.98,0.0004,120]
[404884607,1770648641207,-164.173392,0.0004,120]
[404884608,1770648641217,-487.0,0.0004,2]
[404884609,1770648641226,-487.0,0.0004,2]
[404884610,1770648641235,-487.0,0.0004,2]
[404884611,1770648641245,-487.0,0.0004,2]
[404884612,1770648641254,-487.0,0.0004,2]
[404884613,1770648641263,-487.0,0.0004,2]
[404884614,1770648641273,-487.0,0.0004,2]
[404884615,1770648641284,-487.0,0.0004,2]
[404884616,1770648641293,-487.0,0.0004,2]
[404884617,1770648641303,-487.0,0.0004,2]
[404884618,1770648641312,-487.0,0.0004,2]
[404884619,1770648641323,-487.0,0.0004,2]
[404884620,1770648641332,-487.0,0.0004,2]
[404884621,1770648641341,-487.0,0.0004,2]
[404884622,1770648641352,-890.63,0.0004,2]
[404884623,1770648641362,-250.0,0.000401,10]
[404884624,1770648641371,-250.0,0.000402,10]
[404884625,1770648641381,-200.0,0.00040247,120]
[404884626,1770648641391,-6200.33010435,0.00040282,2]
[404884627,1770648641401,-151.0,0.000403,17]
[404884628,1770648641410,-151.0,0.000403,15]
[404884629,1770648641421,-250.9686,0.000403,10]
[404884630,1770648641430,-168.0,0.00040343,2]
[404884631,1770648641439,-187.78006525,0.00040357,2]
[404884632,1770648641449,-194.72792766,0.00040357,2]
[404884633,1770648641458,-201.93286099,0.00040357,2]
[404884634,1770648641469,-209.40437684,0.00040357,2]
[404884635,1770648641480,-217.15233878,0.00040357,2]
[404884636,1770648641490,-225.18697532,0.00040357,2]
[404884637,1770648641500,-233.51889341,0.00040357,2]
[404884638,1770648641509,-242.15909246,0.00040357,2]
[404884639,1770648641518,-251.11897888,0.00040357,2]
[404884640,1770648641528,-280.81495723,0.00040357,2]
[404884641,1770648641537,-151.0,0.00040381,120]
[404884642,1770648641546,-151.0,0.00040381,120]
[404884643,1770648641556,-151.0,0.00040381,120]
[404884644,1770648641565,-151.0,0.00040381,120]
[404884645,1770648641575,-151.0,0.00040381,120]
[404884646,1770648641584,-215.648608,0.00040381,120]
[404884647,1770648641593,-151.0,0.00040381,120]
[404884648,1770648641603,-151.0,0.00040381,120]
[404884649,1770648641612,-259.8,0.00040381,120]
[404884650,1770648641621,-259.8,0.00040381,120]
[404884651,1770648641631,-259.8,0.00040381,120]
[404884652,1770648641640,-259.8,0.00040381,120]
[404884653,1770648641650,-259.8,0.00040381,120]
[404884654,1770648641659,-259.8,0.00040381,120]
[404884655,1770648641668,-259.8,0.00040381,120]
[404884656,1770648641678,-259.8,0.00040381,120]
[404884657,1770648641688,-151.0,0.00040381,120]
[404884658,1770648641698,-259.8,0.00040381,120]
[404884659,1770648641707,-151.0,0.00040381,120]
[404884660,1770648641718,-259.8,0.00040381,120]
[404884661,1770648641727,-259.8,0.00040381,120]
[404884662,1770648641737,-259.8,0.00040381,120]
[404884663,1770648641746,-259.8,0.00040381,120]
[404884664,1770648641755,-259.8,0.00040381,120]
[404884665,1770648641764,-259.8,0.00040381,120]
[404884666,1770648641773,-259.8,0.00040381,120]
[404884667,1770648641782,-259.8,0.00040381,120]
[404884668,1770648641791,-259.8,0.00040381,120]
[404884669,1770648641801,-259.8,0.00040381,120]
[404884670,1770648641810,-259.8,0.00040381,120]
[404884671,1770648641819,-153.357592,0.00040381,120]
[404884672,1770648641828,-153.357592,0.00040381,120]
[404884673,1770648641837,-153.357592,0.00040381,120]
[404884674,1770648641846,-1.92174502,0.00040381,120]
[404884706,1770648644550,-151.43584698,0.00040381,120]
[404884707,1770648644561,-153.357592,0.00040381,120]
[404884708,1770648644570,-153.357592,0.00040381,120]
[404884709,1770648644580,-153.357592,0.00040381,120]
[404884710,1770648644589,-153.357592,0.00040381,120]
[404884711,1770648644599,-77.13378502,0.00040381,120]
[404884712,1770648644610,-76.22380698,0.00040381,120]
[404884713,1770648644619,-153.357592,0.00040381,120]
[404884714,1770648644629,-153.357592,0.00040381,120]
[404884715,1770648644638,-153.357592,0.00040381,120]
[404884716,1770648644648,-153.357592,0.00040381,120]
[404884717,1770648644659,-153.357592,0.00040381,120]
[404884718,1770648644669,-109.46830831,0.00040381,120]
[404884720,1770648645871,-43.88928369,0.00040381,120]
[404884721,1770648645882,-153.357592,0.00040381,120]
[404884722,1770648645891,-153.357592,0.00040381,120]
[404884723,1770648645903,-153.357592,0.00040381,120]
[404884724,1770648645912,-153.357592,0.00040381,120]
[404884725,1770648645922,-153.357588,0.00040381,120]
[404884726,1770648645931,-151.0,0.00040381,10]
[404884727,1770648645942,-151.0,0.00040381,10]
[404884728,1770648645951,-151.0,0.00040381,10]
[404884729,1770648645960,-151.0,0.00040381,120]
[404884730,1770648645969,-151.0,0.00040381,7]
[404884731,1770648645978,-151.0,0.00040381,7]
[404884732,1770648645987,-151.0,0.00040381,7]
[404884733,1770648645997,-151.0,0.00040381,7]
[404884734,1770648646006,-187.476341,0.00040381,7]
[404884735,1770648646016,-151.0,0.00040381,120]
[404884736,1770648646025,-151.0,0.00040381,120]
[404884737,1770648646038,-151.0,0.00040381,120]
[404884738,1770648646048,-175.138676,0.00040381,120]
[404884739,1770648646057,-151.0,0.00040381,120]
[404884740,1770648646066,-151.0,0.00040381,120]
[404884741,1770648646076,-151.0,0.00040381,120]
[404884742,1770648646085,-151.0,0.00040381,120]
[404884743,1770648646095,-151.0,0.00040381,120]
[404884744,1770648646104,-151.0,0.00040381,120]
[404884745,1770648646113,-151.0,0.00040381,120]
[404884746,1770648646122,-151.0,0.00040382,120]
[404884747,1770648646131,-151.0,0.00040382,120]
[404884748,1770648646140,-151.0,0.00040382,120]
[404884749,1770648646151,-151.0,0.00040382,120]
[404884750,1770648646160,-151.0,0.00040382,120]
[404884751,1770648646170,-2930.23106387,0.00040382,15]
[404885270,1770649059783,-150.0,0.0002589,2]
[404885272,1770649359989,-500.0,0.00025205,2]
[404885273,1770649360010,-500.0,0.00025205,2]
[404885274,1770649360022,-152.38634335,0.00025205,2]
[404885275,1770649446580,500.0,0.00013699,2]
[404885276,1770649446622,659.56310979,0.00014247,2]
[404885279,1770649640083,-347.61365665,0.00025205,2]
[404885280,1770649640103,-500.0,0.00025205,2]
[404885281,1770649640123,-500.0,0.00025205,2]
[404885282,1770649640143,-378.15463217,0.00025205,2]
[404885283,1770649640165,-2963.85435108,0.00031849,2]
[404885284,1770649640187,-177.00038499,0.00034818,120]
[404885285,1770649640208,-372.795216,0.00034918,2]
[404885286,1770649640234,-5198.0,0.00035,10]
[404885287,1770649640255,-490.5,0.0003645,30]
[404885288,1770649640277,-614.0,0.0003645,30]
[404885289,1770649640297,-1451.90558205,0.00036567,2]
[404885290,1770649640318,-500.0,0.00036582,15]
[404885291,1770649640337,-500.0,0.00036582,15]
[404885292,1770649640359,-500.0,0.00036582,15]
[404885293,1770649640381,-500.0,0.00036582,7]
[404885294,1770649640403,-500.0,0.00036582,7]
[404885295,1770649640425,-500.0,0.00036582,7]
[404885296,1770649640447,-198.5976607,0.00036582,7]
[404885297,1770649640472,-500.0,0.00036582,7]
[404885298,1770649640492,-500.0,0.00036582,15]
[404885299,1770649640512,-500.0,0.00036582,15]
[404885300,1770649640533,-500.0,0.00036582,15]
[404885301,1770649640555,-300.0,0.00036582,15]
[404885302,1770649640577,-24014.0862768,0.00036583,2]
[404885303,1770649640596,-178.869184,0.00036608,2]
[404885304,1770649640620,-1722.8328281,0.00036667,2]
[404885305,1770649640640,-165.0,0.000368,30]
[404885306,1770649640660,-178.869184,0.00038149,2]
[404885307,1770649640681,-178.869184,0.00039691,2]
[404885308,1770649640700,-199.09816796,0.0004,2]
[404885309,1770649640723,-15261.56195168,0.0004,2]
[404885310,1770649640866,-150.0,0.0004,10]
[404885311,1770649640888,-220.27807507,0.00040281,31]
[404885312,1770649640908,-179.5820701,0.00040281,31]
[404885313,1770649640930,-5580.29709387,0.00040282,2]
[404885314,1770649640952,-1726.51417792,0.00040282,12]
[404885315,1770649640974,-431.18,0.00040372,3]
[404885316,1770649641008,-487.0,0.00040382,2]
[404885317,1770649641029,-487.0,0.00040382,2]
[404885318,1770649641050,-487.0,0.00040382,2]
[404885319,1770649641071,-487.0,0.00040382,2]
[404885320,1770649641092,-487.0,0.00040382,2]
[404885321,1770649641112,-487.0,0.00040382,2]
[404885322,1770649641133,-487.0,0.00040382,2]
[404885323,1770649641153,-487.0,0.00040382,2]
[404885324,1770649641174,-578.15,0.00040382,2]
[404885325,1770649641194,-352.800802,0.00040382,120]
[404885326,1770649641213,-352.800806,0.00040382,120]
[404885327,1770649641234,-151.0,0.00040382,120]
[404885328,1770649641252,-151.0,0.00040382,120]
[404885329,1770649641272,-151.0,0.00040382,120]
[404885330,1770649641292,-151.0,0.00040382,120]
[404885331,1770649641312,-151.0,0.00040382,120]
[404885332,1770649641332,-151.0,0.00040382,120]
[404885333,1770649641351,-151.0,0.00040382,120]
[404885334,1770649641371,-151.0,0.00040382,120]
[404885335,1770649641390,-151.0,0.00040382,120]
[404885336,1770649641409,-151.0,0.00040382,120]
[404885337,1770649641427,-151.0,0.00040382,120]
[404885338,1770649641447,-151.0,0.00040382,120]
[404885339,1770649641469,-151.0,0.00040382,120]
[404885340,1770649641489,-293.958154,0.00040382,120]
[404885341,1770649641508,-151.0,0.00040382,120]
[404885342,1770649641530,-151.0,0.00040382,120]
[404885343,1770649641551,-151.0,0.00040382,120]
[404885344,1770649641572,-151.0,0.00040382,120]
[404885345,1770649641594,-262.340705,0.00040382,120]
[404885346,1770649641616,-209.486994,0.00040382,120]
[404885347,1770649641636,-151.0,0.00040382,120]
[404885348,1770649641657,-151.0,0.00040382,120]
[404885349,1770649641676,-151.0,0.00040382,120]
[404885350,1770649641696,-151.0,0.00040382,120]
[404885351,1770649641717,-151.0,0.00040382,120]
[404885352,1770649641740,-151.0,0.00040382,120]
[404885353,1770649641760,-151.0,0.00040382,120]
[404885354,1770649641780,-151.0,0.00040382,120]
[404885355,1770649641801,-151.0,0.00040382,120]
[404885356,1770649641822,-151.0,0.00040382,120]
[404885357,1770649641843,-151.0,0.00040382,120]
[404885358,1770649641863,-151.0,0.00040382,120]
[404885359,1770649641885,-151.0,0.00040382,120]
[404885360,1770649641905,-151.0,0.00040382,120]
[404885361,1770649641925,-151.0,0.00040382,120]
[404885362,1770649641945,-151.0,0.00040382,7]
[404885363,1770649641971,-151.0,0.00040382,7]
[404885364,1770649641992,-151.0,0.00040382,7]
[404885365,1770649642011,-151.0,0.00040382,7]
[404885366,1770649642029,-151.0,0.00040382,7]
[404885367,1770649642049,-151.0,0.00040382,7]
[404885368,1770649642069,-187.476341,0.00040382,7]
[404885369,1770649642090,-151.0,0.00040382,120]
[404885370,1770649642112,-151.0,0.00040382,120]
[404885371,1770649642132,-151.0,0.00040382,120]
[404885372,1770649642151,-175.138676,0.00040382,120]
[404885373,1770649642171,-151.0,0.00040382,120]
[404885374,1770649642192,-151.0,0.00040382,120]
[404885375,1770649642212,-151.0,0.00040382,120]
[404885376,1770649642235,-151.0,0.00040382,120]
[404885377,1770649642256,-151.0,0.00040382,120]
[404885378,1770649642276,-151.0,0.00040382,120]
[404885379,1770649642296,-151.0,0.00040382,120]
[404885380,1770649642317,-151.0,0.00040382,120]
[404885381,1770649642338,-214.040956,0.00040382,120]
[404885382,1770649642360,-150.0,0.0004039,61]
[404885383,1770649642381,-150.0,0.0004039,61]
[404885384,1770649642403,-150.0,0.0004039,61]
[404885385,1770649642423,-150.0,0.0004039,61]
[404885386,1770649642442,-175.0,0.0004039,61]
[404885387,1770649642463,-4116.3,0.000404,2]
[404885388,1770649642484,-379.7196327,0.000404,7]
[404885389,1770649642504,-185.9017551,0.000404,7]
[404885390,1770649642523,-185.9017551,0.000404,7]
[404885391,1770649642542,-379.7196327,0.000404,7]
[404885392,1770649642561,-605.5064495,0.000404,7]
[404885393,1770649642582,-195.1799905,0.000404,7]
[404885394,1770649642601,-177.133385,0.000404,7]
[404885395,1770649642623,-379.7196327,0.000404,7]
[404885396,1770649642642,-306.3745035,0.000404,7]
[404885397,1770649642662,-234.1580906,0.000404,7]
[404885398,1770649642683,-605.5064495,0.000404,7]
[404885399,1770649642701,-185.9017551,0.000404,7]
[404885400,1770649642723,-1397.88,0.000404,14]
[404885401,1770649642743,-195.1799905,0.000404,7]
[404885402,1770649642762,-150.0,0.000404,7]
[404885403,1770649642782,-185.9017551,0.000404,7]
[404885404,1770649642801,-262.1215464,0.000404,7]
[404885405,1770649642821,-605.5064495,0.000404,7]
[404885406,1770649642840,-150.0,0.000404,7]
[404885407,1770649642873,-199.4121551,0.000404,7]
[404885408,1770649642893,-150.0,0.000404,7]
[404885409,1770649642913,-306.3745035,0.000404,7]
[404885410,1770649642936,-185.9017551,0.000404,7]
[404885411,1770649642957,-150.0,0.000404,7]
[404885412,1770649642980,-199.4975206,0.000404,7]
[404885413,1770649642999,-195.1799905,0.000404,7]
[404885414,1770649643019,-150.0,0.000404,7]
[404885415,1770649643039,-317.2892983,0.000404,7]
[404885416,1770649643059,-185.9017551,0.000404,7]
[404885417,1770649643080,-605.5064495,0.000404,7]
[404885418,1770649643100,-379.7196327,0.000404,7]
[404885419,1770649643120,-185.9017551,0.000404,7]
[404885420,1770649643140,-605.5064495,0.000404,7]
[404885421,1770649643160,-306.3745035,0.000404,7]
[404885422,1770649643180,-185.9017551,0.000404,7]
[404885423,1770649643202,-605.5064495,0.000404,7]
[404885424,1770649643224,-185.9017551,0.000404,7]
[404885425,1770649643245,-605.5064495,0.000404,7]
[404885426,1770649643266,-195.1799905,0.000404,7]
[404885427,1770649643287,-150.0,0.000404,7]
[404885428,1770649643307,-306.3745035,0.000404,7]
[404885429,1770649643328,-379.7196327,0.000404,7]
[404885430,1770649643347,-605.5064495,0.000404,7]
[404885431,1770649643368,-185.8495312,0.000404,7]
[404885432,1770649643389,-195.1799905,0.000404,7]
[404885433,1770649643409,-150.0,0.000404,7]
[404885434,1770649643429,-306.3745035,0.000404,7]
[404885435,1770649643450,-185.9017551,0.000404,7]
[404885436,1770649643472,-605.5064495,0.000404,7]
[404885437,1770649643492,-379.7196327,0.000404,7]
[404885438,1770649643513,-150.0,0.000404,7]
[404885439,1770649643534,-195.1799905,0.000404,7]
[404885440,1770649643555,-344.1903661,0.000404,7]
[404885441,1770649643576,-185.9017551,0.000404,7]
[404885442,1770649643597,-621.3224628,0.000404,7]
[404885443,1770649643618,-185.9017551,0.000404,7]
[404885444,1770649643742,-195.1799905,0.000404,7]
[404885445,1770649643762,-150.0,0.000404,7]
[404885446,1770649643783,-379.7196327,0.000404,7]
[404885447,1770649643802,-185.9017551,0.000404,7]
[404885448,1770649643822,-195.1799905,0.000404,7]
[404885449,1770649643842,-150.0,0.000404,7]
[404885450,1770649643862,-185.9017551,0.000404,7]
[404885451,1770649643882,-605.5064495,0.000404,7]
[404885452,1770649643905,-195.1799905,0.000404,7]
[404885453,1770649643925,-150.0,0.000404,7]
[404885454,1770649643946,-605.5064495,0.000404,7]
[404885455,1770649643966,-306.3745035,0.000404,7]
[404885456,1770649643988,-379.7196327,0.000404,7]
[404885457,1770649644009,-185.9017551,0.000404,7]
[404885458,1770649644030,-150.0,0.000404,7]
[404885459,1770649644051,-195.1799905,0.000404,7]
[404885460,1770649644073,-306.3745035,0.000404,7]
[404885461,1770649644102,-185.9017551,0.000404,7]
[404885462,1770649644123,-605.5064495,0.000404,7]
[404885463,1770649644143,-379.7196327,0.000404,7]
[404885464,1770649644163,-150.0,0.000404,7]
[404885465,1770649644184,-195.1799905,0.000404,7]
[404885466,1770649644204,-605.5064495,0.000404,7]
[404885467,1770649644225,-185.9017551,0.000404,7]
[404885468,1770649644246,-376.8852206,0.000404,7]
[404885469,1770649644267,-306.3745035,0.000404,7]
[404885470,1770649644288,-605.5064497,0.000404,7]
[404885471,1770649644309,-185.9017551,0.000404,7]
[404885472,1770649644330,-306.3745035,0.000404,7]
[404885473,1770649644350,-379.7196327,0.000404,7]
[404885474,1770649644369,-150.0,0.000404,7]
[404885475,1770649644388,-195.1799905,0.000404,7]
[404885476,1770649644408,-379.7196327,0.000404,7]
[404885477,1770649644428,-605.5064495,0.000404,7]
[404885478,1770649644448,-185.9017551,0.000404,7]
[404885479,1770649644469,-306.3745035,0.000404,7]
[404885480,1770649644489,-195.1799905,0.000404,7]
[404885481,1770649644510,-150.0,0.000404,7]
[404885482,1770649644532,-605.5064495,0.000404,7]
[404885483,1770649644554,-379.7196327,0.000404,7]
[404885484,1770649644577,-306.3745035,0.000404,7]
[404885485,1770649644597,-185.9017551,0.000404,7]
[404885486,1770649644625,-150.0,0.000404,7]
[404885487,1770649644646,-195.1799905,0.000404,7]
[404885488,1770649644667,-379.7196327,0.000404,7]
[404885489,1770649644686,-605.5064495,0.000404,7]
[404885490,1770649644707,-185.9017551,0.000404,7]
[404885491,1770649644728,-306.3745035,0.000404,7]
[404885492,1770649644748,-195.1799905,0.000404,7]
[404885493,1770649644767,-150.0,0.000404,7]
[404885494,1770649644786,-379.7196327,0.000404,7]
[404885495,1770649644805,-185.9017551,0.000404,7]
[404885496,1770649644824,-605.5064495,0.000404,7]
[404885497,1770649644846,-306.3745035,0.000404,7]
[404885498,1770649644866,-150.0,0.000404,7]
[404885499,1770649644887,-195.1799905,0.000404,7]
[404885500,1770649644912,-605.5064495,0.000404,7]
[404885501,1770649644934,-379.7196327,0.000404,7]
[404885502,1770649644954,-185.9017551,0.000404,7]
[404885503,1770649644975,-210.5400669,0.000404,7]
[404885504,1770649644996,-190.0488146,0.000404,7]
[404885505,1770649645018,-185.953979,0.000404,7]
[404885506,1770649645040,-605.3267221,0.000404,7]
[404885507,1770649645069,-306.3745035,0.000404,7]
[404885508,1770649645095,-605.5064495,0.000404,7]
[404885509,1770649645117,-185.9017551,0.000404,7]
[404885510,1770649645138,-389.0151562,0.000404,7]
[404885511,1770649645159,-306.3745035,0.000404,7]
[404885512,1770649645178,-379.7196327,0.000404,7]
[404885513,1770649645200,-185.9017551,0.000404,7]
[404885514,1770649645221,-564.4391164,0.000404,7]
[404885515,1770649645242,-185.9017551,0.000404,7]
[404885516,1770649645263,-311.5843331,0.000404,7]
[404885517,1770649645287,-605.5064495,0.000404,7]
[404885518,1770649645308,-185.9017551,0.000404,7]
[404885519,1770649645332,-605.5064495,0.000404,7]
[404885520,1770649645354,-306.3745035,0.000404,7]
[404885521,1770649645376,-306.3745035,0.000404,7]
[404885522,1770649645398,-185.9017551,0.000404,7]
[404885523,1770649645419,-605.5064495,0.000404,7]
[404885524,1770649645450,-379.7196327,0.000404,7]
[404885525,1770649645472,-379.7196327,0.000404,7]
[404885526,1770649645495,-605.5064495,0.000404,7]
[404885527,1770649645516,-185.9017551,0.000404,7]
[404885528,1770649645537,-185.9017551,0.000404,7]
[404885529,1770649645558,-185.9017551,0.000404,7]
[404885530,1770649645582,-605.5064495,0.000404,7]
[404885531,1770649645606,-185.9017551,0.000404,7]
[404885532,1770649645631,-605.5064495,0.000404,7]
[404885533,1770649645659,-185.9017551,0.000404,7]
[404885534,1770649645681,-605.5064495,0.000404,7]
[404885535,1770649645705,-185.953979,0.000404,7]
[404885536,1770649645727,-605.5064495,0.000404,7]
[404885537,1770649645747,-180.9064296,0.000404,7]
[404885538,1770649645769,-379.7196327,0.000404,7]
[404885539,1770649645791,-604.3971434,0.000404,7]
[404885540,1770649645814,-185.953979,0.000404,7]
[404885541,1770649645835,-185.9017551,0.000404,7]
[404885542,1770649645854,-605.6861769,0.000404,7]
[404885543,1770649645875,-185.9017551,0.000404,7]
[404885544,1770649645896,-605.5064495,0.000404,7]
[404885545,1770649645920,-185.9017551,0.000404,7]
[404885546,1770649645943,-605.6861769,0.000404,7]
[404885547,1770649645966,-185.953979,0.000404,7]
[404885548,1770649645990,-185.9017551,0.000404,7]
[404885549,1770649646012,-185.6406354,0.000404,7]
[404885550,1770649646038,-605.5064495,0.000404,7]
[404885551,1770649646061,-150.0,0.000404,7]
[404885552,1770649646084,-195.1799905,0.000404,7]
[404885553,1770649646106,-306.3745035,0.000404,7]
[404885554,1770649646128,-185.9017551,0.000404,7]
[404885555,1770649646152,-379.7196327,0.000404,7]
[404885556,1770649646175,-605.5064495,0.000404,7]
[404885557,1770649646197,-195.1799905,0.000404,7]
[404885558,1770649646221,-150.0,0.000404,7]
[404885559,1770649646250,-185.9017551,0.000404,7]
[404885560,1770649646273,-185.9017551,0.000404,7]
[404885561,1770649646294,-195.1799905,0.000404,7]
[404885562,1770649646315,-379.7196327,0.000404,7]
[404885563,1770649646337,-185.9017551,0.000404,7]
[404885564,1770649646357,-306.3745035,0.000404,7]
[404885565,1770649646377,-195.1799905,0.000404,7]
[404885566,1770649646397,-185.9017551,0.000404,7]
[404885567,1770649646418,-185.953979,0.000404,7]
[404885568,1770649646438,-605.5064495,0.000404,7]
[404885569,1770649646460,-185.9017551,0.000404,7]
[404885570,1770649646483,-195.1799905,0.000404,7]
[404885571,1770649646503,-200.0,0.00040487,120]
[404885572,1770649646526,-168.0,0.00040891,2]
[404885573,1770649646680,-306.3745035,0.000409,30]
[404885574,1770649646706,-195.1799905,0.000409,30]
[404885575,1770649646741,-605.5064495,0.000409,7]
[404885576,1770649646764,-379.7196327,0.000409,7]
[404885577,1770649646784,-190.4974634,0.000409,30]
[404885578,1770649646806,-151.0,0.00040986,60]
[404885579,1770649646828,-515.56,0.00040993,120]
[404885580,1770649646850,-210.05838691,0.00041,2]
[404885581,1770649646871,-185.9017551,0.00041,30]
[404885582,1770649646894,-185.9017553,0.00041,30]
[404885583,1770649646916,-200.0,0.00041093,120]
[404885584,1770649646938,-363.10431927,0.00041095,120]
[404885585,1770649646963,-209.28,0.00041096,120]
[404885586,1770649646990,-552.02,0.00041096,120]
[404885587,1770649647015,-151.0,0.00041096,120]
[404885588,1770649647038,-151.0,0.00041096,120]
[404885589,1770649647062,-151.0,0.00041096,120]
[404885590,1770649647084,-151.0,0.00041096,120]
[404885591,1770649647106,-151.0,0.00041096,120]
[404885592,1770649647128,-151.0,0.00041096,120]
[404885593,1770649647149,-151.0,0.00041096,120]
[404885594,1770649647170,-151.0,0.00041096,120]
[404885595,1770649647191,-151.0,0.00041096,120]
[404885596,1770649647213,-151.0,0.00041096,120]
[404885597,1770649647241,-151.0,0.00041096,120]
[404885598,1770649647263,-285.159533,0.00041096,120]
[404885599,1770649647286,-151.0,0.00041096,120]
[404885600,1770649647308,-151.0,0.00041096,120]
[404885601,1770649647330,-151.0,0.00041096,120]
[404885602,1770649647351,-151.0,0.00041096,120]
[404885603,1770649647374,-151.0,0.00041096,120]
[404885604,1770649647408,-151.0,0.00041096,120]
[404885605,1770649647432,-301.043509,0.00041096,120]
[404885606,1770649647457,-871.87,0.00041096,120]
[404885607,1770649647482,-379.7196327,0.000411,30]
[404885608,1770649647504,-605.5064495,0.000411,30]
[404885609,1770649647528,-306.3745035,0.000411,30]
[404885610,1770649647552,-200.0,0.00041153,120]
[404885611,1770649647580,-600.0,0.00041189,60]
[404885612,1770649647601,-185.953979,0.000412,30]
[404885613,1770649647625,-306.0506363,0.000412,30]
[404885614,1770649647647,-195.1799905,0.000412,30]
[404885615,1770649647669,-306.3745035,0.000412,30]
[404885616,1770649647693,-185.9017551,0.000412,30]
[404885617,1770649647716,-178.869184,0.00041232,2]
[404885618,1770649647744,-168.0,0.00041282,2]
[404885619,1770649647767,-563.0,0.000415,30]
[404885620,1770649647789,-200.0,0.0004159,120]
[404885621,1770649647811,-300.0,0.00042,120]
[404885622,1770649647831,-328.19259471,0.00042,120]
[404885623,1770649647853,-515.56,0.0004208,120]
[404885624,1770649647872,-151.0,0.00042466,120]
[404885625,1770649647894,-151.0,0.00042466,120]
[404885626,1770649647917,-151.0,0.00042466,120]
[404885627,1770649647937,-151.0,0.00042466,120]
[404885628,1770649647958,-151.0,0.00042466,120]
[404885629,1770649647981,-249.191715,0.00042466,120]
[404885630,1770649648007,-178.869184,0.00042773,2]
[404885631,1770649648030,-200.0,0.000429,120]
[404885632,1770649648053,-4116.3,0.000429,2]
[404885633,1770649648074,-1397.88,0.000429,14]
[404885634,1770649648100,-515.56,0.00043168,120]
[404885635,1770649648122,-2441.5901,0.0004322,7]
[404885636,1770649648146,-660.592791,0.0004349,7]
[404885637,1770649648171,-660.592791,0.0004349,7]
[404885638,1770649648203,-227.74984334,0.0004349,7]
[404885639,1770649648231,-227.74984334,0.0004349,7]
[404885640,1770649648255,-225.0,0.000438,90]
[404885641,1770649648279,-467.06004958,0.000438,30]
[404885642,1770649648307,-259.53710219,0.00043836,2]
[404885643,1770649648332,-300.0,0.00044,120]
[404885644,1770649648358,-200.0,0.0004404,120]
[404885645,1770649648385,-207.00422268,0.00044225,90]
[404885646,1770649648410,-160.0,0.00044229,3]
[404885647,1770649648441,-515.56,0.00044256,120]
[404885648,1770649648466,-200.0,0.00044301,120]
[404885649,1770649648495,-178.869184,0.00044314,2]
[404885650,1770649648516,-966.26448897,0.000449,120]
[404885651,1770649648539,-200.0,0.00044979,120]
[404885652,1770649648560,-884.00836954,0.00045,20]
[404885653,1770649648583,-6587.80829722,0.00045,2]